bitfinex/quotes_ETHUSD_20250126
["timestamp","ask_amount","ask_price","bid_price","bid_amount"]
[1737875691482,0.04754971,3339.4,3339.3,2.99463]
[1737875691843,0.7991,3339.8,3339.3,2.99463]
[1737875692043,0.04754971,3339.4,3339.3,2.99463]
[1737875692356,0.04747098,3339.4,3339.3,2.99463]
[1737875692557,0.7991,3339.8,3339.3,2.99463]
[1737875692756,0.04757914,3339.7,3339.3,2.99463]
[1737875692956,0.7991,3339.8,3339.3,2.99463]
[1737875693155,0.04757914,3339.7,3339.3,2.99463]
[1737875693357,1.178414,3339.8,3339.3,2.99463]
[1737875693559,0.04757914,3339.7,3339.3,2.99463]
[1737875693845,1.178414,3339.8,3339.3,2.99463]
[1737875694059,0.04754309,3339.6,3339.3,2.99463]
[1737875694282,1.178414,3339.8,3339.3,2.99463]
[1737875694484,0.04750703,3339.5,3339.3,2.99463]
[1737875694788,0.04747098,3339.4,3339.3,2.99463]
[1737875694990,0.7991,3339.8,3339.3,2.99463]
[1737875695145,0.04747098,3339.4,3339.3,2.99463]
[1737875695484,1.17842,3339.8,3339.3,2.99463]
[1737875695646,0.04747098,3339.4,3339.3,2.99463]
[1737875695851,1.17842,3339.8,3339.3,2.99463]
[1737875696048,0.04747098,3339.4,3339.3,2.99463]
[1737875696296,1.17842,3339.8,3339.3,2.99463]
[1737875696460,0.04747098,3339.4,3339.3,2.99463]
[1737875696649,1.17842,3339.8,3339.3,2.99463]
[1737875697285,0.04758144,3339.7,3339.3,2.99463]
[1737875697646,1.17842,3339.8,3339.3,2.99463]
[1737875697887,0.04754539,3339.6,3339.3,2.99463]
[1737875698057,0.04758144,3339.7,3339.3,2.99463]
[1737875698258,0.04750933,3339.5,3339.3,2.99463]
[1737875698553,0.7991,3339.8,3339.3,2.99463]
[1737875698751,0.04747328,3339.4,3339.3,2.99463]
[1737875699160,0.7991,3339.8,3339.3,2.99463]
[1737875699360,0.04758144,3339.7,3339.3,2.99463]
[1737875699683,0.7991,3339.8,3339.3,2.99463]
[1737875699884,0.04754539,3339.6,3339.3,2.99463]
[1737875700047,0.04758144,3339.7,3339.3,2.99463]
[1737875700250,0.04750933,3339.5,3339.3,2.99463]
[1737875700487,0.7991,3339.8,3339.3,2.99463]
[1737875700685,0.04747328,3339.4,3339.3,2.99463]
[1737875700870,0.7815,3340.3,3339.3,0.676043]
[1737875701183,0.7815,3340.3,3339.8,2.99418]
[1737875701395,3.7753,3340.3,3339.6,2.99431]
[1737875701587,0.68062951,3340.2,3339.6,2.99431]
[1737875702098,0.81892511,3340.1,3339.3,2.99461]
[1737875702259,2.99411,3339.9,3339.3,2.99461]
[1737875702463,0.7815,3340.0,3339.4,2.99448]
[1737875702708,3.77553,3340.0,3339.3,3.0]
[1737875702878,3.40912189,3339.9,3339.3,3.0]
[1737875703212,0.7815,3339.8,3339.3,3.0]
[1737875703606,0.7815,3339.8,3339.2,8.25469]
[1737875706567,0.7815,3339.8,3339.2,2.99469]
[1737875707109,0.04599298,3339.7,3339.2,2.99469]
[1737875711617,0.04599298,3339.7,3339.3,2.99461]
[1737875711796,0.7815,3339.8,3339.3,2.99461]
[1737875711996,0.04599298,3339.7,3339.3,2.99461]
[1737875712197,0.7815,3339.8,3339.3,2.99461]
[1737875712525,0.04599298,3339.7,3339.3,2.99461]
[1737875712821,0.7757,3339.6,3339.3,2.99461]
[1737875713019,0.04592088,3339.5,3339.3,2.99461]
[1737875713192,0.04592088,3339.5,3339.4,2.99454]
[1737875713591,0.7757,3340.1,3339.4,2.99454]
[1737875713895,0.04607566,3340.0,3339.8,2.99417]
[1737875716388,0.04607566,3340.0,3339.5,2.99443]
[1737875716798,0.04607566,3340.0,3339.7,2.99427]
[1737875717885,0.8071,3339.9,3339.2,2.99466]
[1737875718199,0.8071,3339.7,3339.2,5.99466]
[1737875718402,0.04596621,3339.6,3339.2,5.99466]
[1737875719327,0.04596621,3339.6,3339.1,3.0]
[1737875719534,0.04596621,3339.6,3339.2,5.98942]
[1737875719828,0.04596621,3339.6,3339.5,2.99446]
[1737875720030,0.8071,3340.1,3339.5,2.99446]
[1737875720332,0.04610011,3340.0,3339.5,2.99446]
[1737875722734,0.04610011,3340.0,3339.6,2.99435]
[1737875725805,0.04610011,3340.0,3339.7,2.99427]
[1737875727538,0.04610011,3340.0,3339.5,2.99439]
[1737875729348,0.04610011,3340.0,3339.6,2.99434]
[1737875729521,0.04610011,3340.0,3339.4,2.99452]
[1737875729844,0.04610011,3340.0,3339.6,0.7657]
[1737875730535,0.7623,3340.3,3339.6,0.7657]
[1737875730724,0.04605943,3339.9,3339.6,0.7657]
[1737875730919,0.7623,3340.3,3339.6,0.7657]
[1737875731125,0.04602339,3339.8,3339.6,0.7657]
[1737875731326,0.7623,3340.3,3339.7,2.9942]
[1737875731512,1.437243,3340.3,3339.7,2.9942]
[1737875733535,1.437243,3340.3,3339.7,5.98841]
[1737875733721,1.437243,3340.3,3339.7,2.9942]
[1737875733931,3.75578,3340.6,3340.0,0.7657]
[1737875734133,0.7623,3340.6,3340.1,2.99391]
[1737875736642,0.7623,3340.6,3340.2,2.99377]
[1737875737005,0.0459506,3340.5,3340.2,2.99377]
[1737875738343,0.0459506,3340.5,3340.0,3.75971]
[1737875738705,0.0459506,3340.5,3340.0,2.99401]
[1737875740646,0.8221,3340.4,3339.7,3.0]
[1737875740850,2.99383,3340.2,3339.7,3.0]
[1737875741206,3.03990474,3340.1,3339.4,3.76682]
[1737875741548,0.82109287,3340.0,3339.5,2.99445]
[1737875741935,0.04589411,3339.9,3339.5,2.99445]
[1737875744311,0.04589411,3339.9,3339.5,4.42975536]
[1737875749922,0.04589411,3339.9,3339.6,2.99435]
[1737875755679,0.04589411,3339.9,3339.7,2.99428]
[1737875756166,0.04589411,3339.9,3339.8,2.99419]
[1737875758569,0.7838,3340.2,3339.8,2.99419]
[1737875758767,0.04269769,3339.9,3339.8,2.99419]
[1737875758971,0.7838,3340.2,3339.8,2.99419]
[1737875759141,0.04269769,3339.9,3339.8,2.99419]
[1737875759345,0.7838,3340.2,3339.8,2.99419]
[1737875759859,0.0427698,3340.1,3339.9,2.99409]
[1737875760172,0.0427698,3340.1,3340.0,2.99401]
[1737875760682,0.7838,3340.6,3340.2,2.9938]
[1737875761036,0.7838,3340.6,3340.3,2.99372]
[1737875762478,0.7838,3340.6,3340.1,2.99386]
[1737875766279,0.7838,3340.4,3339.8,2.99416]
[1737875766518,0.7838,3340.4,3339.8,4.63871154]
[1737875767154,0.04157425,3340.3,3339.8,4.63871154]
[1737875768086,0.04157425,3340.3,3339.8,2.99315286]
[1737875769183,0.7838,3340.2,3339.8,2.99315286]
[1737875769545,0.04149289,3340.1,3339.8,2.99315286]
[1737875770786,0.04149289,3340.1,3339.6,8.25435]
[1737875770992,0.04149289,3340.1,3339.6,2.99435]
[1737875773097,0.7838,3340.0,3339.5,3.0]
[1737875773275,0.7838,3340.0,3339.4,2.99454]
[1737875773593,0.7838,3339.8,3339.4,2.99454]
[1737875774097,0.04129031,3339.7,3339.5,2.99446]
[1737875774394,0.7838,3339.8,3339.5,2.99446]
[1737875774755,0.04129031,3339.7,3339.5,2.99446]
[1737875775065,0.7838,3339.8,3339.5,2.99446]
[1737875775271,0.04127178,3339.7,3339.5,2.99446]
[1737875775594,0.7838,3339.8,3339.5,2.99446]
[1737875775985,0.04127178,3339.7,3339.5,2.99446]
[1737875776395,0.7838,3339.8,3339.5,2.99446]
[1737875776596,0.7838,3339.8,3339.4,2.99451]
[1737875776772,0.04032178,3339.7,3339.4,2.99451]
[1737875777193,0.7838,3339.8,3339.4,2.99451]
[1737875777501,0.04032178,3339.7,3339.4,2.99451]
[1737875777796,0.7838,3339.8,3339.4,2.99451]
[1737875778160,0.04032178,3339.7,3339.4,2.99451]
[1737875778461,0.7838,3339.8,3339.4,2.99451]
[1737875778668,0.04032178,3339.7,3339.4,2.99451]
[1737875778875,0.7838,3339.8,3339.4,2.99451]
[1737875779076,0.04032178,3339.7,3339.4,2.99451]
[1737875779298,0.7838,3339.8,3339.4,2.99451]
[1737875779497,0.04032178,3339.7,3339.4,2.99451]
[1737875779700,0.7838,3339.8,3339.4,2.99451]
[1737875779863,0.04032178,3339.7,3339.4,2.99451]
[1737875780201,0.7838,3339.8,3339.4,2.99451]
[1737875780478,0.04022685,3339.7,3339.4,2.99451]
[1737875780805,0.7838,3339.8,3339.4,2.99451]
[1737875781303,0.04022685,3339.7,3339.4,2.99451]
[1737875781549,0.7838,3339.8,3339.4,2.99451]
[1737875782001,0.04022685,3339.7,3339.4,2.99451]
[1737875782301,0.7838,3339.8,3339.4,2.99451]
[1737875782489,0.04022685,3339.7,3339.4,2.99451]
[1737875782689,0.7838,3339.8,3339.2,2.99466]
[1737875782895,0.04022685,3339.7,3339.2,2.99466]
[1737875784204,0.04022685,3339.7,3339.3,2.99457]
[1737875784607,0.7838,3339.8,3339.3,2.99457]
[1737875784806,0.04016299,3339.6,3339.3,2.99457]
[1737875784969,0.04019906,3339.7,3339.4,2.99454]
[1737875785169,0.04012693,3339.5,3339.4,2.99454]
[1737875785611,0.7838,3339.8,3339.4,2.99454]
[1737875786115,0.04019906,3339.7,3339.4,2.99454]
[1737875786302,0.7838,3339.8,3339.4,2.99454]
[1737875786511,0.04019906,3339.7,3339.4,2.99454]
[1737875787009,0.7838,3339.8,3339.4,2.99454]
[1737875787215,0.04016299,3339.6,3339.4,2.99454]
[1737875787414,0.7838,3339.8,3339.4,2.99454]
[1737875787574,0.04012693,3339.5,3339.4,2.99454]
[1737875787772,0.7838,3339.8,3339.4,2.99454]
[1737875788016,0.04012693,3339.5,3339.4,2.99454]
[1737875788421,0.7838,3339.8,3339.4,2.99454]
[1737875788582,0.04012693,3339.5,3339.4,2.99454]
[1737875788781,0.7838,3339.8,3339.4,2.99454]
[1737875789045,0.04012693,3339.5,3339.4,2.99454]
[1737875789619,0.04012693,3339.5,3339.2,2.99466]
[1737875789915,0.7838,3339.8,3339.2,2.99466]
[1737875790115,0.04019906,3339.7,3339.2,2.99466]
[1737875790914,0.8135,3339.6,3339.2,2.99466]
[1737875791283,0.0401084,3339.5,3339.2,2.99466]
[1737875795108,0.0401084,3339.5,3339.3,2.99463]
[1737875795437,0.0401084,3339.5,3339.4,2.99454]
[1737875795790,0.7875,3340.1,3339.8,2.99411]
[1737875795994,0.7875,3340.3,3339.8,2.99411]
[1737875796640,0.7875,3340.3,3340.0,2.99398]
[1737875797013,0.0403446,3340.2,3340.0,2.99398]
[1737875797499,0.0403446,3340.2,3339.8,2.99411]
[1737875797695,0.7875,3340.0,3339.6,2.99434]
[1737875798199,0.04023644,3339.9,3339.4,2.99454]
[1737875800236,0.04023644,3339.9,3339.2,2.99471]
[1737875800463,0.82492763,3339.8,3339.2,2.99471]
[1737875800622,0.7875,3339.8,3339.2,2.99471]
[1737875800822,0.04025001,3339.7,3339.2,2.99471]
[1737875802223,0.0776801,3339.7,3339.2,2.99471]
[1737875802560,0.04025001,3339.7,3339.2,2.99471]
[1737875802949,0.07768155,3339.7,3339.0,2.99489]
[1737875803145,3.07198155,3339.7,3339.0,2.99489]
[1737875803326,0.7875,3339.6,3339.0,2.99489]
[1737875803527,0.04006209,3339.5,3339.0,2.99489]
[1737875805026,0.04006209,3339.5,3339.1,2.99474]
[1737875805847,0.04006209,3339.5,3339.0,2.99489]
[1737875807568,0.7946,3339.4,3338.8,2.99505]
[1737875807863,0.03992976,3339.3,3338.8,2.99505]
[1737875811269,0.03992976,3339.3,3338.6,3.77223]
[1737875811601,3.03457976,3339.3,3338.6,2.99523]
[1737875812935,0.7946,3339.2,3338.6,2.99523]
[1737875813146,0.03841187,3339.1,3338.6,2.99523]
[1737875813600,0.03841187,3339.1,3338.7,2.99517]
[1737875815554,0.03841187,3339.1,3338.7,5.99034]
[1737875815754,0.03841187,3339.1,3338.7,2.99517]
[1737875821391,0.03841187,3339.1,3338.8,2.99506]
[1737875821593,0.03841187,3339.1,3339.0,2.9949]
[1737875821971,0.8297,3339.5,3339.0,2.9949]
[1737875822173,0.03837874,3339.4,3339.0,2.9949]
[1737875824401,0.03837874,3339.4,3338.8,2.99506]
[1737875826403,0.8297,3339.3,3338.8,2.99506]
[1737875826827,0.0383066,3339.2,3338.8,2.99506]
[1737875827185,0.8297,3339.3,3338.8,2.99506]
[1737875827388,0.0383066,3339.2,3338.6,2.99524]
[1737875827587,0.8297,3339.3,3338.9,2.99498]
[1737875827782,0.0383066,3339.2,3338.9,2.99498]
[1737875828015,0.8297,3339.3,3338.9,2.99498]
[1737875828214,0.03827053,3339.1,3338.9,2.99498]
[1737875828527,0.8297,3339.3,3338.7,2.99513]
[1737875828987,0.0383066,3339.2,3338.7,2.99513]
[1737875830927,0.0383066,3339.2,3338.8,2.99508]
[1737875831231,0.8297,3339.3,3338.8,2.99508]
[1737875831399,0.03697478,3339.1,3338.8,2.99508]
[1737875831726,0.8297,3339.3,3338.8,2.99508]
[1737875831928,0.0369387,3339.0,3338.8,2.99508]
[1737875832224,0.8297,3339.3,3338.8,2.99508]
[1737875832225,0.03690262,3338.9,3338.8,2.99508]
[1737875832789,0.8297,3339.3,3338.8,2.99508]
[1737875832989,0.03701085,3339.2,3338.8,2.99508]
[1737875833203,0.8297,3339.3,3338.8,2.99508]
[1737875833403,0.03701085,3339.2,3338.8,2.99508]
[1737875833599,0.8297,3339.3,3338.8,2.99508]
[1737875833818,0.03701085,3339.2,3338.8,2.99508]
[1737875834249,0.8297,3339.3,3338.8,2.99508]
[1737875834459,0.03697478,3339.1,3338.8,2.99508]
[1737875834613,0.03701085,3339.2,3338.8,2.99508]
[1737875834813,0.0369387,3339.0,3338.8,2.99508]
[1737875835013,0.8297,3339.3,3338.8,2.99508]
[1737875835323,0.8297,3339.3,3338.9,2.99494]
[1737875835540,0.03701085,3339.2,3338.9,2.99494]
[1737875835740,0.8297,3339.3,3338.9,2.99494]
[1737875836059,0.03701085,3339.2,3338.9,2.99494]
[1737875836361,0.8297,3339.3,3338.9,2.99494]
[1737875836567,0.03701085,3339.2,3338.9,3.82019]
[1737875836859,0.8244,3339.7,3338.9,4.202209]
[1737875837016,0.8244,3339.7,3339.1,2.99475]
[1737875837220,3.81868,3339.7,3339.1,2.99475]
[1737875842067,0.03719682,3339.6,3339.1,2.99475]
[1737875842563,0.03719682,3339.6,3338.9,3.82019]
[1737875842734,0.03719682,3339.6,3339.0,2.99489]
[1737875843966,3.03156682,3339.6,3339.0,2.99489]
[1737875844851,0.03719682,3339.6,3339.0,2.99489]
[1737875845054,0.03719682,3339.6,3339.1,0.4412148]
[1737875845250,0.03719682,3339.6,3339.0,2.99489]
[1737875845664,0.8244,3339.5,3339.0,2.99489]
[1737875846067,0.03712469,3339.4,3339.0,2.99489]
[1737875847284,0.03712469,3339.4,3338.8,2.99507]
[1737875847781,0.03712469,3339.4,3338.9,2.99497]
[1737875851896,3.03167469,3339.4,3338.7,3.8203]
[1737875852078,3.03167469,3339.4,3338.7,4.26571716]
[1737875852274,0.03712469,3339.4,3338.8,2.995]
[1737875853188,0.03712469,3339.4,3338.7,1.27061716]
[1737875853397,0.03712469,3339.4,3338.9,2.99498]
[1737875857544,0.03712469,3339.4,3338.7,4.26578716]
[1737875857842,0.03712469,3339.4,3338.8,4.00619161]
[1737875859149,0.03712469,3339.4,3338.9,2.99498]
[1737875861317,0.8036,3339.3,3338.7,4.26578716]
[1737875861612,0.03579474,3339.2,3338.7,4.26578716]
[1737875861818,0.03579474,3339.2,3338.8,2.99504]
[1737875862016,0.8036,3339.3,3338.8,2.99504]
[1737875862257,0.03579474,3339.2,3338.8,2.99504]
[1737875862460,0.03579474,3339.2,3338.8,3.41550314]
[1737875862670,0.8036,3339.3,3338.8,3.41550314]
[1737875862952,0.03575867,3339.1,3338.8,3.41550314]
[1737875863157,0.0357226,3339.0,3338.8,3.41550314]
[1737875863367,0.8036,3339.3,3338.8,3.41550314]
[1737875863569,0.03579474,3339.2,3338.8,0.42046314]
[1737875863730,0.8036,3339.3,3338.9,2.99499]
[1737875864070,0.03579474,3339.2,3338.9,2.99499]
[1737875864373,0.8036,3339.3,3338.9,2.99499]
[1737875864554,0.03579474,3339.2,3338.9,2.99499]
[1737875864755,0.8036,3339.3,3338.9,2.99499]
[1737875864925,0.03574378,3339.2,3338.9,2.99499]
[1737875865128,0.8036,3339.3,3338.9,2.99499]
[1737875865382,0.03574378,3339.2,3338.9,2.99499]
[1737875865538,0.8036,3339.3,3338.9,2.99499]
[1737875865744,0.03574378,3339.2,3338.9,2.99499]
[1737875866055,0.8036,3339.3,3338.9,2.99499]
[1737875866256,0.0357077,3339.1,3338.9,2.99499]
[1737875866458,0.8036,3339.3,3338.9,2.99499]
[1737875866643,0.03567163,3339.0,3338.9,2.99499]
[1737875866835,0.8036,3339.3,3338.9,3.76311403]
[1737875867133,0.03574378,3339.2,3338.9,2.99499]
[1737875867556,0.8036,3339.3,3338.9,2.99499]
[1737875867753,0.0357077,3339.1,3338.9,2.99499]
[1737875867963,0.03567163,3339.0,3338.9,2.99499]
[1737875868135,0.8036,3339.3,3338.9,2.99499]
[1737875868329,0.03574378,3339.2,3338.9,2.99499]
[1737875868643,0.8036,3339.3,3338.9,2.99499]
[1737875868844,0.0357077,3339.1,3338.9,2.99499]
[1737875869048,0.8036,3339.3,3338.9,2.99499]
[1737875869049,0.8036,3339.3,3338.9,3.76311403]
[1737875869243,0.03567163,3339.0,3338.9,3.76311403]
[1737875869450,0.8036,3339.3,3338.9,3.76311403]
[1737875870060,0.03574378,3339.2,3338.9,3.76311403]
[1737875870560,0.0357077,3339.1,3338.9,3.76311403]
[1737875870746,0.8036,3339.3,3338.9,3.76311403]
[1737875870945,0.03574378,3339.2,3338.9,3.76311403]
[1737875871156,0.8036,3339.3,3338.9,3.76311403]
[1737875871364,0.0345497,3339.2,3338.9,3.76311403]
[1737875871534,0.8036,3339.3,3338.9,3.76311403]
[1737875871734,0.0345497,3339.2,3338.9,2.99499]
[1737875872077,0.8036,3339.3,3338.9,2.99499]
[1737875872235,0.03451362,3339.1,3338.9,2.99499]
[1737875872434,0.8036,3339.3,3338.9,2.99499]
[1737875872672,0.0345497,3339.2,3338.9,2.99499]
[1737875872977,0.8036,3339.3,3338.9,2.99499]
[1737875873138,0.0345497,3339.2,3338.9,2.99499]
[1737875873472,0.8036,3339.3,3338.9,2.99499]
[1737875873674,0.03451362,3339.1,3338.9,2.99499]
[1737875873836,0.8036,3339.3,3338.9,2.99499]
[1737875874136,0.0345497,3339.2,3338.9,2.99499]
[1737875874337,0.8036,3339.3,3338.9,2.99499]
[1737875874550,0.0345497,3339.2,3338.9,2.99499]
[1737875874761,0.8036,3339.3,3338.9,2.99499]
[1737875875074,0.03455896,3339.2,3338.9,2.99499]
[1737875875385,0.8036,3339.3,3338.9,2.99499]
[1737875875588,0.03455896,3339.2,3338.9,2.99499]
[1737875875888,0.8036,3339.3,3339.0,2.99489]
[1737875876068,0.03452289,3339.1,3339.0,2.99489]
[1737875876269,0.8036,3339.3,3339.0,2.99489]
[1737875876671,0.03455896,3339.2,3338.8,3.41548314]
[1737875876995,3.80707,3339.6,3339.0,2.99488]
[1737875877199,0.03466717,3339.5,3339.0,2.99487]
[1737875878195,0.03365934,3339.5,3339.0,2.99487]
[1737875878695,0.03365934,3339.5,3338.8,2.99508]
[1737875879002,0.03365934,3339.5,3339.1,2.99481]
[1737875880201,0.03365934,3339.5,3339.2,2.99471]
[1737875880499,0.03365934,3339.5,3339.4,2.99454]
[1737875880798,0.8127,3339.8,3339.4,2.99454]
[1737875881098,0.0334496,3339.7,3339.4,2.99454]
[1737875881495,0.8127,3339.8,3339.4,2.99454]
[1737875881697,0.03341354,3339.6,3339.4,2.99454]
[1737875881857,0.8127,3339.8,3339.4,2.99454]
[1737875882057,0.0334496,3339.7,3339.2,2.99471]
[1737875882262,0.0334496,3339.7,3339.3,3.6712]
[1737875882663,0.8127,3339.8,3339.3,3.6712]
[1737875882871,0.03341354,3339.6,3339.3,3.6712]
[1737875883096,0.0334496,3339.7,3339.3,3.6712]
[1737875883298,0.03337747,3339.5,3339.3,3.6712]
[1737875883511,0.8127,3339.8,3339.4,0.744231]
[1737875883800,0.8127,3339.8,3339.3,2.9946]
[1737875885712,0.0334496,3339.7,3339.3,2.9946]
[1737875885866,0.0334496,3339.7,3339.4,2.99448]
[1737875886067,0.8127,3339.8,3339.4,2.99448]
[1737875886264,0.8127,3339.8,3339.5,2.99446]
[1737875886265,0.03341354,3339.6,3339.5,2.99446]
[1737875886610,0.03341354,3339.6,3339.5,3.593354]
[1737875886900,0.7778,3340.1,3339.5,3.593354]
[1737875887100,0.7778,3340.1,3339.5,2.99446]
[1737875887304,0.03355777,3340.0,3339.5,2.99446]
[1737875888239,0.03355777,3340.0,3339.7,2.99427]
[1737875888786,0.03355777,3340.0,3339.5,2.99446]
[1737875891023,0.03355777,3340.0,3339.6,2.99436]
[1737875894615,0.7778,3339.9,3339.4,2.99453]
[1737875894818,0.03355785,3339.8,3339.4,2.99453]
[1737875895022,0.7778,3339.9,3339.4,2.99453]
[1737875895196,0.03355785,3339.8,3339.2,5.98937]
[1737875895379,0.03355785,3339.8,3339.3,2.99463]
[1737875895986,0.7709,3339.7,3339.2,2.99466]
[1737875896186,0.03357377,3339.6,3339.2,2.99466]
[1737875897403,0.03357377,3339.6,3339.1,5.26]
[1737875897404,0.7709,3339.5,3339.1,5.26]
[1737875897603,0.03345067,3339.4,3339.1,5.26]
[1737875899608,0.03345067,3339.4,3339.0,2.99489]
[1737875901943,0.03345067,3339.4,3339.1,2.99479]
[1737875903244,0.03345067,3339.4,3339.3,2.99463]
[1737875903900,0.7709,3339.8,3339.4,2.99452]
[1737875906155,0.7709,3339.8,3339.3,2.99463]
[1737875906308,0.7709,3339.8,3339.5,2.99444]
[1737875907933,0.7709,3339.8,3339.4,0.7867]
[1737875908148,0.7709,3339.8,3339.3,2.99463]
[1737875908745,1.446797,3339.8,3339.3,2.99362216]
[1737875908910,1.446797,3339.8,3339.1,2.99478]
[1737875908911,4.440997,3339.8,3339.1,2.99478]
[1737875909547,1.446797,3339.8,3339.2,2.99471]
[1737875912310,0.7709,3339.8,3339.3,2.99457]
[1737875914683,0.7709,3339.8,3339.2,2.99471]
[1737875914984,0.7709,3339.8,3339.4,2.99452]
[1737875917284,0.03349168,3339.7,3339.4,2.99452]
[1737875917482,0.7709,3339.8,3339.4,2.99452]
[1737875917692,0.03345561,3339.6,3339.4,2.99452]
[1737875917979,0.7709,3339.8,3339.4,2.99452]
[1737875918179,0.03341955,3339.5,3339.4,2.99452]
[1737875918346,0.7709,3339.8,3339.4,2.99452]
[1737875918544,0.03341955,3339.5,3339.4,2.99452]
[1737875918738,0.7709,3339.8,3339.4,2.99452]
[1737875918940,0.03341955,3339.5,3339.4,2.99452]
[1737875919144,0.7709,3339.8,3339.4,2.99452]
[1737875919378,0.03341955,3339.5,3339.4,2.99452]
[1737875919580,0.7709,3339.8,3339.4,2.99452]
[1737875919782,0.03341955,3339.5,3339.4,2.99452]
[1737875920286,0.7709,3339.8,3339.4,2.99452]
[1737875920447,0.03341955,3339.5,3339.4,2.99452]
[1737875920651,0.7709,3339.8,3339.4,2.99452]
[1737875920855,0.03349168,3339.7,3339.4,2.99452]
[1737875921056,0.7709,3339.8,3339.4,2.99452]
[1737875921356,0.03349168,3339.7,3339.4,2.99452]
[1737875921557,0.7709,3339.8,3339.2,2.99471]
[1737875921764,0.03349168,3339.7,3339.2,2.99471]
[1737875923993,0.03349168,3339.7,3339.3,2.99455]
[1737875924296,0.7709,3339.8,3339.3,2.99455]
[1737875924510,0.03346718,3339.6,3339.3,2.99455]
[1737875924655,0.03350324,3339.7,3339.3,2.99455]
[1737875924851,0.7709,3339.8,3339.3,2.99455]
[1737875925053,0.03350324,3339.7,3339.3,2.99455]
[1737875925270,0.7709,3339.8,3339.3,2.99455]
[1737875925498,0.03350324,3339.7,3339.3,2.99455]
[1737875925879,0.7709,3339.8,3339.3,2.99455]
[1737875926087,0.03350324,3339.7,3339.3,2.99455]
[1737875926297,0.7709,3339.8,3339.3,2.99455]
[1737875926596,0.03350324,3339.7,3339.3,2.99455]
[1737875926914,2.9941,3339.9,3339.0,1.37875581]
[1737875926915,6.1087,3340.3,3339.8,2.99412]
[1737875927058,6.1087,3340.3,3339.8,3.74532]
[1737875927564,6.1087,3340.3,3339.8,2.99412]
[1737875929287,0.7987,3340.3,3339.8,2.99412]
[1737875930092,0.7987,3340.3,3339.9,2.99403]
[1737875930860,0.7987,3340.3,3340.0,2.99399]
[1737875932050,0.03368353,3340.2,3340.0,2.99399]
[1737875934554,0.03368353,3340.2,3339.9,2.99401]
[1737875934858,0.7987,3340.3,3339.9,2.99401]
[1737875935027,0.03368353,3340.2,3339.9,2.99401]
[1737875935213,0.7987,3340.3,3339.9,2.99401]
[1737875935550,0.03368353,3340.2,3339.9,2.99401]
[1737875935970,0.7987,3340.3,3339.9,2.99401]
[1737875936265,0.03368353,3340.2,3339.9,2.99401]
[1737875936559,0.03368353,3340.2,3340.0,2.99399]
[1737875940071,0.03368353,3340.2,3340.0,3.75499]
[1737875940236,3.76967,3340.6,3340.0,3.75499]
[1737875940444,0.03268794,3340.1,3340.0,3.75499]
[1737875940763,0.7762,3340.6,3340.3,2.99368]
[1737875941068,0.03283214,3340.5,3340.3,2.99368]
[1737875941261,0.7762,3340.8,3340.3,2.99368]
[1737875941782,0.03290422,3340.7,3340.3,2.99368]
[1737875942073,0.7762,3340.8,3340.3,2.99368]
[1737875942280,0.03176598,3340.6,3340.3,2.99368]
[1737875942433,0.7762,3340.8,3340.3,2.99368]
[1737875942627,0.03172994,3340.5,3340.3,2.99368]
[1737875942859,0.7762,3340.8,3340.3,2.99368]
[1737875943066,0.03169389,3340.4,3340.3,2.99368]
[1737875943230,0.7762,3340.8,3340.3,2.99368]
[1737875943432,0.03169389,3340.4,3340.3,2.99368]
[1737875943628,0.7762,3340.8,3340.3,3.7360161]
[1737875943852,0.03169389,3340.4,3340.3,2.99368]
[1737875944071,0.7762,3340.8,3340.3,2.99368]
[1737875944274,0.03169389,3340.4,3340.3,2.99368]
[1737875944573,0.7762,3340.8,3340.3,2.99368]
[1737875944777,0.03169389,3340.4,3340.3,2.99368]
[1737875945279,0.7762,3340.8,3340.3,2.99368]
[1737875945479,0.03169389,3340.4,3340.3,2.99368]
[1737875945682,0.7762,3340.8,3340.3,2.99368]
[1737875945683,0.7762,3340.8,3340.3,3.7360161]
[1737875945891,0.03169389,3340.4,3340.3,2.99368]
[1737875946168,0.7762,3340.8,3340.0,1.435911]
[1737875946381,0.03169389,3340.4,3340.3,2.99374]
[1737875946581,0.7762,3340.8,3340.5,2.99351]
[1737875946942,0.03180202,3340.7,3340.5,2.99351]
[1737875947358,0.7762,3340.8,3340.5,2.99351]
[1737875947557,0.03176598,3340.6,3340.5,2.99351]
[1737875948066,0.7762,3340.8,3340.5,2.99351]
[1737875948278,0.03176598,3340.6,3340.5,2.99351]
[1737875948574,0.7762,3340.8,3340.3,2.99372]
[1737875948735,0.03176598,3340.6,3340.3,2.99372]
[1737875948935,0.03180202,3340.7,3340.1,2.9939]
[1737875949135,3.7695,3340.8,3340.1,2.9939]
[1737875949136,0.03172994,3340.5,3340.1,2.9939]
[1737875949335,0.03203928,3340.6,3340.2,2.99382]
[1737875949630,3.7695,3340.8,3340.2,2.99382]
[1737875949835,0.03200324,3340.5,3340.2,2.99382]
[1737875950062,3.7695,3340.8,3340.2,2.99382]
[1737875950370,0.03196719,3340.4,3340.2,2.99382]
[1737875950548,3.7695,3340.8,3340.2,2.99382]
[1737875950746,0.03193114,3340.3,3340.2,2.99382]
[1737875950951,3.7695,3340.8,3340.2,2.99382]
[1737875951157,0.03193114,3340.3,3340.2,2.99382]
[1737875951358,3.7695,3340.8,3340.2,2.99382]
[1737875951577,0.03193114,3340.3,3340.2,2.99382]
[1737875951733,3.7695,3340.8,3340.2,2.99382]
[1737875951936,0.03193114,3340.3,3340.2,2.99382]
[1737875952136,0.7762,3340.8,3340.3,2.99373]
[1737875952576,0.03207532,3340.7,3340.4,2.99363]
[1737875952737,0.03207532,3340.7,3339.7,8.25422]
[1737875952738,0.03207532,3340.7,3339.9,0.7897]
[1737875952936,0.8138,3341.0,3340.5,5.98696]
[1737875953235,0.03220296,3340.9,3340.5,5.98696]
[1737875953436,0.03220296,3340.9,3340.6,2.99342]